fUST/lending_fUST_20240207
["ID","MTS","AMOUNT","RATE_DAILY","PERIOD"]
[313365102,1707235249909,155.0310062,0.00017776,3]
[313365117,1707235288316,567.6824724,0.00016852,2]
[313365132,1707235322233,1652.14329151,0.00016852,2]
[313365138,1707235336249,577.50117741,0.00016852,2]
[313365149,1707235362656,250.0,0.00017512,2]
[313365155,1707235380860,155.0310062,0.00017769,3]
[313365167,1707235503930,5000.0,0.00016832,2]
[313365168,1707235503958,2520.35553108,0.00016832,2]
[313365169,1707235503986,10000.0,0.00016832,2]
[313365170,1707235504014,7379.64446892,0.00016832,2]
[313365171,1707235556684,665.6173536,0.00016817,2]
[313365172,1707235600002,155.02480397,0.00017755,3]
[313365175,1707235691408,799.903213,0.00016901,2]
[313365179,1707235759524,155.02015262,0.00016901,2]
[313365181,1707235797390,155.02015262,0.00017931,3]
[313365228,1707235832293,-500.0,0.00017645,2]
[313365230,1707235832303,-294.46120376,0.00017646,2]
[313365232,1707235832313,-1018.05941437,0.00017647,2]
[313365233,1707235832322,-18951.59688778,0.00017647,2]
[313365235,1707235832331,-175.65933101,0.00017648,2]
[313365237,1707235832341,-5222.96790488,0.00017648,2]
[313365238,1707235832350,-2605.60915647,0.00017648,2]
[313365240,1707235832360,-1653.22345402,0.00017649,2]
[313365242,1707235832370,-1220.48280122,0.00017653,2]
[313365244,1707235832382,-4257.8834926,0.00017932,2]
[313365246,1707235832391,-5851.77964259,0.00018067,2]
[313365247,1707235832401,-1071.11659234,0.00018068,2]
[313365249,1707235832410,-563.010236,0.00018896,2]
[313365250,1707235832420,-537.97660176,0.000189,2]
[313365252,1707235832430,-167.542562,0.00019331,2]
[313365254,1707235832439,-200.0,0.00019527,2]
[313365255,1707235832448,-323.94218908,0.00020999,2]
[313365256,1707235832458,-1748.4047811,0.00021,2]
[313365258,1707235832469,-280.0,0.0002148,7]
[313365259,1707235832478,-155.02015262,0.00021508,4]
[313365261,1707235832487,-979.77178088,0.0002173,2]
[313365263,1707235832496,-667.79230136,0.00021731,2]
[313365265,1707235832505,-193.69011651,0.000219,2]
[313365266,1707235832515,-19504.39524379,0.00022,2]
[313365268,1707235832524,-155.02015262,0.00022,2]
[313365270,1707235832533,-427.14523557,0.00022,2]
[313365271,1707235832541,-326.35317074,0.00022,2]
[313365273,1707235832551,-9460.34,0.00022426,3]
[313365275,1707235832560,-13622.89,0.00022436,3]
[313365277,1707235832569,-11352.41,0.00022436,3]
[313365279,1707235832578,-16347.47,0.00022446,3]
[313365280,1707235832588,-9256.72993804,0.00022456,2]
[313365282,1707235832597,-193.69011651,0.00022969,2]
[313365283,1707235832606,-391.0,0.00023628,7]
[313365294,1707235832730,-14664.45339014,0.000239,2]
[313365295,1707235832739,-537.97660176,0.000239,2]
[313365297,1707235832748,-3329.18619939,0.00023905,2]
[313365299,1707235832758,-193.69011651,0.00024038,2]
[313365301,1707235832767,-500.0,0.00024135,2]
[313365303,1707235832776,-204.23686205,0.00024135,2]
[313365305,1707235832786,-500.0,0.00024135,2]
[313365307,1707235832796,-500.0,0.00024135,2]
[313365309,1707235832806,-267.81469663,0.00024135,2]
[313365310,1707235832815,-500.0,0.00024135,2]
[313365312,1707235832825,-500.0,0.00024135,2]
[313365314,1707235832834,-500.0,0.00024135,2]
[313365316,1707235832844,-500.0,0.00024135,2]
[313365317,1707235832853,-500.0,0.00024135,2]
[313365319,1707235832863,-500.0,0.00024135,2]
[313365321,1707235832872,-500.0,0.00024135,2]
[313365323,1707235832882,-394.17753096,0.00024135,2]
[313365325,1707235832891,-500.0,0.00024135,2]
[313365327,1707235832900,-500.0,0.00024135,2]
[313365328,1707235832909,-500.0,0.00024135,2]
[313365330,1707235832919,-307.11833989,0.00024135,2]
[313365332,1707235832928,-500.0,0.00024135,2]
[313365334,1707235832937,-152.07790445,0.00024135,2]
[313365336,1707235832945,-500.0,0.00024135,2]
[313365338,1707235832955,-500.0,0.00024135,2]
[313365340,1707235832965,-500.0,0.00024135,2]
[313365341,1707235832974,-500.0,0.00024135,2]
[313365343,1707235832983,-500.0,0.00024135,2]
[313365345,1707235832992,-500.0,0.00024135,2]
[313365347,1707235833001,-500.0,0.00024135,2]
[313365349,1707235833010,-500.0,0.00024135,2]
[313365351,1707235833019,-500.0,0.00024135,2]
[313365352,1707235833028,-500.0,0.00024135,2]
[313365354,1707235833036,-500.0,0.00024135,2]
[313365356,1707235833045,-500.0,0.00024135,2]
[313365358,1707235833053,-526.1839631,0.00024135,2]
[313365360,1707235833062,-500.0,0.00024135,2]
[313365361,1707235833070,-500.0,0.00024135,2]
[313365363,1707235833079,-500.0,0.00024135,2]
[313365365,1707235833088,-500.0,0.00024135,2]
[313365367,1707235833097,-500.0,0.00024135,2]
[313365369,1707235833105,-500.0,0.00024135,2]
[313365371,1707235833115,-500.0,0.00024135,2]
[313365372,1707235833123,-500.0,0.00024135,2]
[313365374,1707235833132,-500.0,0.00024135,2]
[313365376,1707235833141,-500.0,0.00024135,2]
[313365378,1707235833150,-500.0,0.00024135,2]
[313365380,1707235833158,-500.0,0.00024135,2]
[313365381,1707235833168,-500.0,0.00024135,2]
[313365383,1707235833177,-500.0,0.00024135,2]
[313365385,1707235833186,-500.0,0.00024135,2]
[313365386,1707235833195,-500.0,0.00024135,2]
[313365388,1707235833204,-500.0,0.00024135,2]
[313365389,1707235833213,-500.0,0.00024135,2]
[313365390,1707235833222,-500.0,0.00024135,2]
[313365391,1707235833231,-500.0,0.00024135,2]
[313365392,1707235833240,-550.01021408,0.00024135,2]
[313365393,1707235833249,-500.0,0.00024135,2]
[313365394,1707235833257,-500.0,0.00024135,2]
[313365395,1707235833267,-500.0,0.00024135,2]
[313365396,1707235833275,-500.0,0.00024135,2]
[313365397,1707235833285,-388.23380194,0.00024135,2]
[313365398,1707235833294,-500.0,0.00024135,2]
[313365399,1707235833303,-500.0,0.00024135,2]
[313365400,1707235833311,-500.0,0.00024135,2]
[313365401,1707235833320,-500.0,0.00024135,2]
[313365402,1707235833329,-500.0,0.00024135,2]
[313365403,1707235833338,-500.0,0.00024135,2]
[313365404,1707235833347,-500.0,0.00024135,2]
[313365405,1707235833355,-500.0,0.00024135,2]
[313365406,1707235833364,-397.82231303,0.00024135,2]
[313365407,1707235833374,-500.0,0.00024135,2]
[313365408,1707235833386,-500.0,0.00024135,2]
[313365409,1707235833395,-500.0,0.00024135,2]
[313365410,1707235833404,-500.0,0.00024135,2]
[313365411,1707235833413,-500.0,0.00024135,2]
[313365412,1707235833423,-500.0,0.00024135,2]
[313365413,1707235833432,-500.0,0.00024135,2]
[313365414,1707235833441,-500.0,0.00024135,2]
[313365415,1707235833452,-500.0,0.00024135,2]
[313365416,1707235833464,-500.0,0.00024135,2]
[313365417,1707235833474,-500.0,0.00024135,2]
[313365418,1707235833483,-500.0,0.00024135,2]
[313365419,1707235833493,-500.0,0.00024135,2]
[313365420,1707235833502,-500.0,0.00024135,2]
[313365421,1707235833511,-500.0,0.00024135,2]
[313365422,1707235833520,-500.0,0.00024135,2]
[313365423,1707235833530,-500.0,0.00024135,2]
[313365424,1707235833539,-500.0,0.00024135,2]
[313365425,1707235833548,-500.0,0.00024135,2]
[313365426,1707235833556,-500.0,0.00024135,2]
[313365427,1707235833566,-500.0,0.00024135,2]
[313365428,1707235833575,-500.0,0.00024135,2]
[313365429,1707235833584,-500.0,0.00024135,2]
[313365430,1707235833593,-500.0,0.00024135,2]
[313365431,1707235833602,-500.0,0.00024135,2]
[313365432,1707235833611,-500.0,0.00024135,2]
[313365433,1707235833620,-250.0,0.00024135,2]
[313365434,1707235833628,-500.0,0.00024135,2]
[313365435,1707235833637,-500.0,0.00024135,2]
[313365436,1707235833646,-500.0,0.00024135,2]
[313365437,1707235833656,-500.0,0.00024135,2]
[313365438,1707235833665,-195.0,0.00024135,2]
[313365439,1707235833674,-500.0,0.00024135,2]
[313365440,1707235833683,-500.0,0.00024135,2]
[313365441,1707235833692,-500.0,0.00024135,2]
[313365442,1707235833701,-300.0,0.00024136,2]
[313365443,1707235833710,-313.11416557,0.00024136,6]
[313365444,1707235833720,-1831.07268714,0.00024136,2]
[313365445,1707235833729,-2090.25573355,0.00024136,2]
[313365446,1707235833738,-32752.19106619,0.00024136,2]
[313365447,1707235833834,-1230.16603797,0.00024136,2]
[313365448,1707235833846,-605.21632658,0.00024136,2]
[313365449,1707235833855,-165.51248233,0.00024137,2]
[313365467,1707235838445,-36.68020932,0.00024137,2]
[313365468,1707235838454,-6526.87220024,0.00024137,2]
[313365469,1707235838466,-565.92545535,0.00024137,2]
[313365470,1707235838475,-151.0,0.00024138,2]
[313365471,1707235838484,-155.67406201,0.00024141,2]
[313365472,1707235838494,-444.17481353,0.00024142,2]
[313365473,1707235838502,-388.31498976,0.00024143,2]
[313365490,1707235841559,-1735.30755927,0.00024143,2]
[313365491,1707235841568,-154.90861455,0.00024143,2]
[313365492,1707235841577,-500.0,0.00024143,2]
[313365493,1707235841586,-225.13155146,0.00024143,2]
[313365494,1707235841596,-500.0,0.00024143,2]
[313365495,1707235841605,-533.33446823,0.00024143,2]
[313365496,1707235841615,-500.0,0.00024143,2]
[313365497,1707235841624,-209.80375577,0.00024143,2]
[313365498,1707235841632,-500.0,0.00024143,2]
[313365499,1707235841642,-500.0,0.00024143,2]
[313365500,1707235841651,-500.0,0.00024143,2]
[313365501,1707235841660,-500.0,0.00024143,2]
[313365502,1707235841671,-459.28223131,0.00024143,2]
[313365503,1707235841680,-189.30874306,0.00024144,2]
[313365504,1707235841689,-226.52854825,0.00024144,2]
[313365505,1707235841698,-337.17543562,0.00024144,2]
[313365506,1707235841708,-156.20777802,0.00024144,2]
[313365507,1707235841717,-1276.86539196,0.00024144,2]
[313365508,1707235841729,-5.72020109,0.00024144,2]
[313365509,1707235841739,-209.14728312,0.00024144,2]
[313365510,1707235841748,-1742.34321276,0.00024144,2]
[313365511,1707235841758,-161.39805278,0.00024144,2]
[313365512,1707235841767,-155.29784667,0.00024144,2]
[313365513,1707235841776,-681.1679298,0.00024144,2]
[313365514,1707235841786,-2414.51717754,0.00024145,2]
[313365515,1707235841795,-199.36548899,0.00024145,2]
[313365516,1707235841804,-156.1416422,0.00024145,2]
[313365517,1707235841813,-36.8908899,0.00024145,2]
[313365518,1707235841913,-905.1687743,0.00024145,2]
[313365519,1707235841923,-279.84268876,0.00024145,2]
[313365520,1707235841933,-180.41203707,0.00024145,2]
[313365521,1707235841942,-13075.58055029,0.00024146,2]
[313365522,1707235841951,-358.84873955,0.00024146,2]
[313365523,1707235841960,-155.46139629,0.00024146,2]
[313365524,1707235841970,-836.14406291,0.00024146,2]
[313365525,1707235841979,-156.58530486,0.00024146,2]
[313365526,1707235841988,-179.97810264,0.00024146,2]
[313365527,1707235841997,-254.7364143,0.00024146,2]
[313365528,1707235842007,-453.24014473,0.00024146,2]
[313365529,1707235842016,-3986.67255482,0.00024146,2]
[313365530,1707235842025,-1200.48914762,0.00024146,2]
[313365531,1707235842035,-1433.12724431,0.00024146,2]
[313365532,1707235842044,-155.8748378,0.00024146,2]
[313365533,1707235842053,-7977.34507232,0.00024146,2]
[313365534,1707235842063,-3753.61482354,0.00024146,2]
[313365535,1707235842072,-151.0,0.00024146,2]
[313365536,1707235842081,-151.0,0.00024146,2]
[313365537,1707235842091,-589.999177,0.00024146,2]
[313365538,1707235842099,-589.999177,0.00024146,2]
[313365539,1707235842108,-151.62057,0.00024146,2]
[313365540,1707235842117,-262.1491,0.00024146,2]
[313365541,1707235842126,-262.1491,0.00024146,2]
[313365542,1707235842136,-969.44105267,0.00024147,2]
[313365543,1707235842148,-1580.86595,0.00024147,2]
[313365544,1707235842159,-1149.99112773,0.00024147,2]
[313365545,1707235842168,-1809.98123994,0.00024148,2]
[313365546,1707235842294,-1305.39667217,0.00024148,2]
[313365556,1707235843449,-1385.83192117,0.00024138,3]
[313365571,1707235846404,-500.0,0.00024137,2]
[313365572,1707235846413,-415.71746682,0.00024138,3]
[313365573,1707235846426,-3054.77645107,0.00024138,3]
[313365656,1707236140573,155.0341075,0.00017533,3]
[313365660,1707236361526,999.81481186,0.0001652,2]
[313365661,1707236361554,10000.0,0.0001652,2]
[313365662,1707236361583,10000.0,0.0001652,2]
[313365663,1707236361612,3900.18518814,0.0001652,2]
[313365665,1707236410444,155.06047358,0.00017999,3]
[313365672,1707236576245,650.091069,0.0001686,2]
[313365694,1707236674478,155.0480649,0.00017999,3]
[313365717,1707236780590,5449.72374286,0.00016912,2]
[313365718,1707236780619,10000.0,0.00016912,2]
[313365719,1707236780648,9450.27625714,0.00016912,2]
[313365757,1707236926525,155.04961588,0.00017999,3]
[313365789,1707237033587,-294.46120376,0.0001734,2]
[313365790,1707237033598,-295.68843197,0.00017341,2]
[313365791,1707237033608,-155.04961588,0.00017341,2]
[313365792,1707237033617,-155.04961588,0.00017341,2]
[313365793,1707237033629,-906.00048725,0.00017341,2]
[313365794,1707237033639,-563.010236,0.00017341,2]
[313365795,1707237033649,-167.12620684,0.00017342,2]
[313365796,1707237033658,-947.63713043,0.00017342,2]
[313365797,1707237033671,-999.01445838,0.00017342,2]
[313365798,1707237033681,-2605.60915647,0.00017342,2]
[313365799,1707237033692,-640.24322624,0.00017343,2]
[313365800,1707237033701,-167.4575283,0.00017343,2]
[313365801,1707237033713,-175.65933101,0.00017343,2]
[313365802,1707237033724,-523.48199317,0.00017343,2]
[313365803,1707237033736,-454.16512687,0.00017344,2]
[313365804,1707237033746,-500.0,0.00017344,2]
[313365805,1707237033756,-1018.05941437,0.00017344,2]
[313365806,1707237033767,-261.79361725,0.00017345,2]
[313365807,1707237033778,-155.04961588,0.00017345,2]
[313365808,1707237033788,-155.04961588,0.00017345,2]
[313365809,1707237033799,-621.02027145,0.00017345,2]
[313365810,1707237033810,-589.9320815,0.00017345,2]
[313365811,1707237033820,-1433.59401123,0.00017345,2]
[313365812,1707237033831,-155.04961588,0.00017346,2]
[313365813,1707237033846,-1687.55863151,0.00017346,2]
[313365814,1707237033865,-181.4758217,0.00017346,2]
[313365815,1707237033875,-322.23788217,0.00017347,2]
[313365816,1707237033886,-5222.96790488,0.00017349,2]
[313365817,1707237033895,-11403.08540316,0.00017548,2]
[313365818,1707237033904,-5851.77964259,0.00018,2]
[313365819,1707237033913,-10000.0,0.00019,2]
[313365820,1707237033923,-564.75425391,0.00019129,2]
[313365821,1707237033933,-200.0,0.00019191,2]
[313365822,1707237033942,-428.50000661,0.000199,2]
[313365823,1707237033951,-323.94218908,0.00020356,2]
[313365824,1707237033960,-155.04961588,0.00020357,4]
[313365825,1707237033969,-564.75425391,0.00020358,2]
[313365826,1707237033979,-12990.69491009,0.0002097,2]
[313365827,1707237033988,-280.0,0.0002111,7]
[313365828,1707237033997,-564.75425391,0.00021587,2]
[313365829,1707237034006,-326.35317074,0.00022,2]
[313365830,1707237034016,-427.14523557,0.00022,2]
[313365831,1707237034025,-179.32553392,0.00022046,2]
[313365832,1707237034034,-564.75425391,0.00022815,2]
[313365833,1707237034043,-307.0,0.00023221,7]
[313365834,1707237034052,-3493.57161214,0.00023659,2]
[313365835,1707237034062,-9622.39,0.00023784,3]
[313365836,1707237034071,-11546.87,0.00023794,3]
[313365837,1707237034080,-6055.2,0.00023804,3]
[313365838,1707237034089,-155.29678995,0.00023903,2]
[313365839,1707237034099,-8203.94620391,0.00023904,2]
[313365840,1707237034108,-12118.07734019,0.00023905,2]
[313365841,1707237034117,-3329.18619939,0.00023905,2]
[313365842,1707237034126,-1000.0,0.00023978,2]
[313365843,1707237034135,-1000.0,0.00024016,2]
[313365844,1707237034145,-564.75425391,0.00024044,2]
[313365845,1707237034154,-1014.35307829,0.00024127,2]
[313365846,1707237034163,-260.89555211,0.00024136,2]
[313365847,1707237034172,-7682.287029,0.00024137,2]
[313365848,1707237034182,-5212.78719945,0.00024137,2]
[313365849,1707237034191,-11093.97804295,0.00024137,2]
[313365850,1707237034200,-2309.95567021,0.00024137,2]
[313365851,1707237034210,-288.394,0.00024137,2]
[313365852,1707237034220,-288.394,0.00024137,2]
[313365853,1707237034229,-276.076957,0.00024137,2]
[313365854,1707237034238,-484.956514,0.00024137,2]
[313365855,1707237034247,-484.956514,0.00024137,2]
[313365856,1707237034257,-155.64169789,0.00024138,2]
[313365857,1707237034266,-343.73527458,0.00024138,2]
[313365858,1707237034276,-2090.25573355,0.00024138,2]
[313365859,1707237034286,-300.0,0.00024138,2]
[313365860,1707237034296,-1828.13592272,0.00024138,2]
[313365861,1707237034305,-313.11416557,0.00024138,6]
[313365862,1707237034314,-484.956514,0.00024138,2]
[313365863,1707237034324,-484.956514,0.00024138,2]
[313365864,1707237034333,-2819.53578676,0.0002414,2]
[313365865,1707237034342,-151.0,0.0002414,2]
[313365866,1707237034352,-776.076258,0.0002414,2]
[313365867,1707237034361,-776.076258,0.0002414,2]
[313365868,1707237034371,-267.79308,0.0002414,2]
[313365869,1707237034381,-151.0,0.0002414,2]
[313365870,1707237034390,-155.28792602,0.00024142,2]
[313365871,1707237034399,-172.12068283,0.00024143,2]
[313365872,1707237034409,-500.0,0.00024143,2]
[313365873,1707237034422,-500.0,0.00024143,2]
[313365874,1707237034431,-219.22592694,0.00024143,2]
[313365875,1707237034440,-328.80913681,0.00024143,2]
[313365876,1707237034449,-312.86042867,0.00024143,2]
[313365877,1707237034458,-470.80671474,0.00024143,2]
[313365878,1707237034468,-500.0,0.00024143,2]
[313365879,1707237034477,-400.13914788,0.00024143,2]
[313365880,1707237034486,-500.0,0.00024143,2]
[313365881,1707237034495,-175.53053005,0.00024143,2]
[313365882,1707237034504,-500.0,0.00024143,2]
[313365883,1707237034513,-500.0,0.00024143,2]
[313365884,1707237034522,-500.0,0.00024143,2]
[313365885,1707237034531,-500.0,0.00024143,2]
[313365886,1707237034540,-500.0,0.00024143,2]
[313365887,1707237034550,-500.0,0.00024143,2]
[313365888,1707237034559,-488.33703829,0.00024143,2]
[313365889,1707237034568,-500.0,0.00024143,2]
[313365890,1707237034578,-500.0,0.00024143,2]
[313365891,1707237034588,-161.14548839,0.00024143,2]
[313365892,1707237034597,-155.50464675,0.00024144,2]
[313365893,1707237034607,-3753.61482354,0.00024144,2]
[313365894,1707237034616,-7977.34507232,0.00024144,2]
[313365895,1707237034625,-1197.90639254,0.00024144,2]
[313365896,1707237034635,-11242.45256001,0.00024144,2]
[313365897,1707237034646,-161.39805278,0.00024144,2]
[313365898,1707237034657,-1803.71934173,0.00024144,2]
[313365899,1707237034667,-155.0356582,0.00024144,2]
[313365900,1707237034676,-330.30417565,0.00024144,2]
[313365901,1707237034685,-19743.97000718,0.00024144,2]
[313365902,1707237034694,-2522.50556884,0.00024144,2]
[313365947,1707237038741,-5222.96790488,0.0001734,2]
[313365949,1707237038761,-8018.66,0.00023774,3]
[313365951,1707237038770,-34519.2136597,0.00024144,2]
[313365953,1707237038779,-151.0,0.00024144,2]
[313365955,1707237038788,-151.0,0.00024144,2]
[313365957,1707237038798,-151.0,0.00024144,2]
[313365959,1707237038807,-151.0,0.00024144,2]
[313365962,1707237038817,-151.0,0.00024144,2]
[313365964,1707237038825,-151.0,0.00024144,2]
[313365966,1707237038835,-776.076258,0.00024144,2]
[313365968,1707237038844,-776.076258,0.00024144,2]
[313365970,1707237038853,-776.076258,0.00024144,2]
[313365972,1707237038862,-776.076258,0.00024144,2]
[313365974,1707237038872,-776.076258,0.00024144,2]
[313365976,1707237038881,-776.076258,0.00024144,2]
[313365978,1707237038890,-288.394,0.00024144,2]
[313365980,1707237038900,-288.394,0.00024144,2]
[313365982,1707237038909,-288.394,0.00024144,2]
[313365984,1707237038918,-288.394,0.00024144,2]
[313365986,1707237038928,-288.394,0.00024144,2]
[313365988,1707237038937,-288.394,0.00024144,2]
[313365990,1707237038946,-484.956514,0.00024144,2]
[313365992,1707237038955,-484.956514,0.00024144,2]
[313365994,1707237038966,-484.956514,0.00024144,2]
[313365996,1707237038975,-484.956514,0.00024144,2]
[313365998,1707237038984,-484.956514,0.00024144,2]
[313366000,1707237038994,-484.956514,0.00024144,2]
[313366002,1707237039003,-1484.82918512,0.00024145,2]
[313366004,1707237039012,-155.66839988,0.00024145,2]
[313366006,1707237039021,-309.99381017,0.00024145,2]
[313366008,1707237039030,-609.31564818,0.00024146,2]
[313366010,1707237039040,-20910.74795782,0.00024146,2]
[313366012,1707237039050,-1589.68284634,0.00024146,2]
[313366014,1707237039058,-310.00620025,0.00024146,2]
[313366016,1707237039068,-1855.98039572,0.00024146,2]
[313366018,1707237039077,-199.63780309,0.00024146,2]
[313366020,1707237039086,-212.4169632,0.00024146,2]
[313366022,1707237039096,-801.22910976,0.00024146,2]
[313366024,1707237039105,-341.31785772,0.00024146,2]
[313366026,1707237039114,-1295.94446577,0.00024146,2]
[313366028,1707237039123,-159.09002618,0.00024146,2]
[313366030,1707237039133,-2042.80747063,0.00024146,2]
[313366032,1707237039141,-20909.96703579,0.00024146,2]
[313366034,1707237039150,-1743.90819804,0.00024146,2]
[313366036,1707237039160,-689.61806868,0.00024146,2]
[313366038,1707237039169,-269.17682424,0.00024146,2]
[313366040,1707237039178,-155.04461547,0.00024146,2]
[313366042,1707237039187,-155.46082299,0.00024146,2]
[313366044,1707237039196,-151.0,0.00024146,2]
[313366046,1707237039205,-151.0,0.00024146,2]
[313366048,1707237039216,-151.0,0.00024146,2]
[313366050,1707237039225,-151.0,0.00024146,2]
[313366052,1707237039235,-776.076258,0.00024146,2]
[313366054,1707237039244,-776.076258,0.00024146,2]
[313366056,1707237039253,-776.076258,0.00024146,2]
[313366058,1707237039262,-776.076258,0.00024146,2]
[313366060,1707237039271,-288.394,0.00024146,2]
[313366062,1707237039280,-288.394,0.00024146,2]
[313366064,1707237039289,-288.394,0.00024146,2]
[313366066,1707237039297,-288.394,0.00024146,2]
[313366068,1707237039306,-484.956514,0.00024146,2]
[313366070,1707237039315,-484.956514,0.00024146,2]
[313366071,1707237039324,-484.956514,0.00024146,2]
[313366073,1707237039333,-484.956514,0.00024146,2]
[313366075,1707237039342,-164.72647675,0.00024147,2]
[313366077,1707237039351,-23595.92246615,0.00024148,2]
[313366079,1707237039360,-151.0,0.00024148,2]
[313366081,1707237039369,-201.392123,0.00024148,2]
[313366083,1707237039378,-776.076258,0.00024148,2]
[313366085,1707237039387,-776.076258,0.00024148,2]
[313366087,1707237039397,-288.394,0.00024148,2]
[313366089,1707237039406,-288.394,0.00024148,2]
[313366091,1707237039414,-484.956514,0.00024148,2]
[313366093,1707237039424,-484.956514,0.00024148,2]
[313366095,1707237039433,-499.92878236,0.0002496,5]
[313366097,1707237039442,-2320.684879,0.0002498,2]
[313366099,1707237039451,-20870.089117,0.0002498,2]
[313366101,1707237039460,-151.0,0.0002498,2]
[313366103,1707237039469,-776.076258,0.0002498,2]
[313366105,1707237039478,-776.076258,0.0002498,2]
[313366107,1707237039487,-288.394,0.0002498,2]
[313366109,1707237039497,-288.394,0.0002498,2]
[313366111,1707237039506,-484.956514,0.0002498,2]
[313366113,1707237039514,-484.956514,0.0002498,2]
[313366115,1707237039523,-523.51337135,0.00025,3]
[313366117,1707237039532,-272.24888462,0.00025,2]
[313366119,1707237039541,-335.46484066,0.00025,2]
[313366121,1707237039550,-7404.37733039,0.00025,2]
[313366123,1707237039559,-535.03190243,0.00025,2]
[313366125,1707237039568,-4737.09564271,0.00025,2]
[313366126,1707237039578,-6298.09855551,0.00025,2]
[313366128,1707237039587,-310.00620012,0.00025,2]
[313366130,1707237039596,-3141.21618564,0.00025,2]
[313366132,1707237039605,-151.0,0.00025,2]
[313366135,1707237039614,-776.076258,0.00025,2]
[313366136,1707237039624,-776.076258,0.00025,2]
[313366138,1707237039633,-288.394,0.00025,2]
[313366141,1707237039642,-288.394,0.00025,2]
[313366143,1707237039651,-484.956514,0.00025,2]
[313366145,1707237039661,-484.956513,0.00025,2]
[313366147,1707237039670,-1000.0,0.00025,2]
[313366148,1707237039679,-1000.0,0.00025,2]
[313366151,1707237039688,-176.135036,0.000252,2]
[313366152,1707237039697,-650.091069,0.0002529,2]
[313366154,1707237039707,-1640.46942817,0.00025297,2]
[313366156,1707237039717,-1292.47516557,0.00025306,2]
[313366158,1707237039729,-1806.76421578,0.00025306,2]
[313366160,1707237039737,-151.21171276,0.00025306,2]
[313366162,1707237039747,-323.11879139,0.00025306,2]
[313366164,1707237039756,-155.02635448,0.00026,7]
[313366166,1707237039766,-151.0,0.00026122,2]
[313366168,1707237039775,-620.39440091,0.000264,2]
[313366170,1707237039784,-1788.68585744,0.000268,2]
[313366172,1707237039793,-4545.79393046,0.000268,2]
[313366174,1707237039803,-3000.0,0.000269,2]
[313366176,1707237039812,-1382.16421912,0.00027,2]
[313366178,1707237039821,-155.02480397,0.00027,2]
[313366180,1707237039830,-12026.56445011,0.00027,2]
[313366182,1707237039839,-155.44659696,0.00027,2]
[313366184,1707237039848,-183.94874633,0.00027,2]
[313366186,1707237039857,-3200.0,0.00027,2]
[313366188,1707237039866,-151.0,0.00027,2]
[313366190,1707237039875,-776.076258,0.00027,2]
[313366192,1707237039884,-776.076261,0.00027,2]
[313366194,1707237039893,-288.394,0.00027,2]
[313366196,1707237039902,-288.394,0.00027,2]
[313366198,1707237039911,-222.085552,0.00027024,2]
[313366200,1707237039920,-200.0,0.00027024,2]
[313366202,1707237039929,-200.0,0.00027024,2]
[313366204,1707237039938,-200.0,0.00027024,2]
[313366206,1707237039947,-200.0,0.00027024,2]
[313366208,1707237039957,-200.0,0.00027024,2]
[313366210,1707237039968,-200.0,0.00027024,2]
[313366212,1707237039977,-200.0,0.00027024,2]
[313366214,1707237039986,-200.0,0.00027024,2]
[313366216,1707237039995,-200.0,0.00027024,2]
[313366218,1707237040004,-200.0,0.00027024,2]
[313366220,1707237040014,-200.0,0.00027024,2]
[313366222,1707237040023,-200.0,0.00027024,2]
[313366224,1707237040032,-200.0,0.00027024,2]
[313366226,1707237040041,-200.0,0.00027024,2]
[313366228,1707237040050,-200.0,0.00027024,2]
[313366231,1707237040060,-200.0,0.00027024,2]